fUST/lending_fUST_20240818
["ID","MTS","AMOUNT","RATE_DAILY","PERIOD"]
[335205657,1723978249187,-500.0,0.00016712,2]
[335205658,1723978249196,-500.0,0.00016712,2]
[335205659,1723978249206,-500.0,0.00016712,2]
[335205660,1723978249216,-210.28986932,0.00016712,2]
[335205661,1723978249225,-500.0,0.00016712,2]
[335205662,1723978249234,-500.0,0.00016712,2]
[335205663,1723978249245,-500.0,0.00016712,2]
[335205664,1723978249255,-500.0,0.00016712,2]
[335205665,1723978249265,-500.0,0.00016712,2]
[335205666,1723978249275,-500.0,0.00016712,2]
[335205667,1723978249284,-802.34,0.00016712,2]
[335205668,1723978249293,-500.0,0.00016712,2]
[335205669,1723978249303,-751.63,0.00016712,2]
[335205670,1723978249312,-503.5388865,0.00016712,2]
[335205671,1723978249322,-500.0,0.00016712,2]
[335205672,1723978249332,-500.0,0.00016712,2]
[335205673,1723978249341,-508.92,0.00016712,2]
[335205674,1723978249350,-500.0,0.00016712,2]
[335205675,1723978249360,-504.84887392,0.00016712,2]
[335205676,1723978249370,-500.0,0.00016712,2]
[335205677,1723978249379,-500.0,0.00016712,2]
[335205678,1723978249389,-500.0,0.00016712,2]
[335205679,1723978249398,-500.0,0.00016712,2]
[335205680,1723978249407,-530.88077677,0.00016712,2]
[335205681,1723978249417,-509.8537679,0.00016712,2]
[335205682,1723978249427,-500.0,0.00016712,2]
[335205683,1723978249437,-500.0,0.00016712,2]
[335205684,1723978249447,-500.0,0.00016712,2]
[335205685,1723978249458,-507.46129466,0.00016712,2]
[335205686,1723978249469,-500.0,0.00016712,2]
[335205687,1723978249481,-500.0,0.00016712,2]
[335205688,1723978249491,-500.0,0.00016712,2]
[335205689,1723978249502,-500.0,0.00016712,2]
[335205690,1723978249512,-505.43564784,0.00016712,2]
[335205691,1723978249522,-500.0,0.00016712,2]
[335205692,1723978249541,-500.0,0.00016712,2]
[335205693,1723978249558,-500.0,0.00016712,2]
[335205694,1723978249567,-500.0,0.00016712,2]
[335205695,1723978249577,-500.0,0.00016712,2]
[335205696,1723978249587,-500.0,0.00016712,2]
[335205697,1723978249597,-500.0,0.00016712,2]
[335205698,1723978249606,-500.0,0.00016712,2]
[335205699,1723978249616,-500.0,0.00016712,2]
[335205700,1723978249625,-546.39,0.00016712,2]
[335205701,1723978249636,-500.0,0.00016712,2]
[335205702,1723978249645,-500.0,0.00016712,2]
[335205703,1723978249656,-151.0,0.00016712,2]
[335205704,1723978249666,-504.61,0.00016712,2]
[335205705,1723978249676,-500.0,0.00016712,2]
[335205706,1723978249773,-959.41,0.00016712,2]
[335205707,1723978249783,-151.0,0.00016712,2]
[335205708,1723978249793,-742.34,0.00016712,2]
[335205709,1723978249804,-500.0,0.00016712,2]
[335205710,1723978249815,-562.7467592,0.00016712,2]
[335205711,1723978249824,-500.0,0.00016712,2]
[335205712,1723978249834,-717.95,0.00016712,2]
[335205713,1723978249844,-599.76,0.00016712,2]
[335205714,1723978249854,-706.31,0.00016712,2]
[335205715,1723978249863,-195.19548428,0.00016712,2]
[335205716,1723978249873,-500.0,0.00016712,2]
[335205717,1723978249885,-500.0,0.00016712,2]
[335205718,1723978249895,-500.0,0.00016712,2]
[335205719,1723978249904,-500.0,0.00016712,2]
[335205720,1723978249915,-500.0,0.00016712,2]
[335205721,1723978249925,-981.51,0.00016712,2]
[335205722,1723978249935,-500.0,0.00016712,2]
[335205723,1723978249944,-560.22,0.00016712,2]
[335205724,1723978249953,-500.0,0.00016712,2]
[335205725,1723978249963,-500.0,0.00016712,2]
[335205726,1723978249973,-500.0,0.00016712,2]
[335205727,1723978249982,-500.0,0.00016712,2]
[335205728,1723978249992,-664.29,0.00016712,2]
[335205729,1723978250002,-502.12097442,0.00016712,2]
[335205730,1723978250012,-500.0,0.00016712,2]
[335205731,1723978250021,-500.0,0.00016712,2]
[335205732,1723978250031,-500.0,0.00016712,2]
[335205733,1723978250041,-500.0,0.00016712,2]
[335205734,1723978250050,-500.0,0.00016712,2]
[335205735,1723978250075,-500.0,0.00016712,2]
[335205736,1723978250085,-500.0,0.00016712,2]
[335205737,1723978250095,-656.15,0.00016712,2]
[335205738,1723978250104,-793.32,0.00016712,2]
[335205739,1723978250115,-500.0,0.00016712,2]
[335205740,1723978250124,-893.97,0.00016712,2]
[335205741,1723978250133,-500.0,0.00016712,2]
[335205742,1723978250143,-500.0,0.00016712,2]
[335205743,1723978250152,-500.0,0.00016712,2]
[335205744,1723978250163,-500.0,0.00016712,2]
[335205745,1723978250173,-566.66951847,0.00016712,2]
[335205746,1723978250183,-500.0,0.00016712,2]
[335205747,1723978250192,-500.0,0.00016712,2]
[335205748,1723978250202,-569.61,0.00016712,2]
[335205749,1723978250212,-500.0,0.00016712,2]
[335205750,1723978250222,-535.0,0.00016712,2]
[335205751,1723978250231,-500.0,0.00016712,2]
[335205752,1723978250242,-500.0,0.00016712,2]
[335205753,1723978250251,-500.0,0.00016712,2]
[335205754,1723978250261,-500.0,0.00016712,2]
[335205755,1723978250271,-500.0,0.00016712,2]
[335205756,1723978250281,-358.63815817,0.00016712,2]
[335205757,1723978250291,-500.0,0.00016712,2]
[335205758,1723978250300,-500.0,0.00016712,2]
[335205759,1723978250309,-500.0,0.00016712,2]
[335205760,1723978250319,-500.0,0.00016712,2]
[335205761,1723978250329,-500.0,0.00016712,2]
[335205762,1723978250338,-500.0,0.00016712,2]
[335205763,1723978250347,-488.23735691,0.00016712,2]
[335205764,1723978250357,-500.0,0.00016712,2]
[335205765,1723978250367,-500.0,0.00016712,2]
[335205766,1723978250376,-500.0,0.00016712,2]
[335205767,1723978250386,-500.0,0.00016712,2]
[335205768,1723978250395,-500.0,0.00016712,2]
[335205769,1723978250405,-500.0,0.00016712,2]
[335205770,1723978250414,-500.0,0.00016712,2]
[335205771,1723978250423,-500.0,0.00016712,2]
[335205772,1723978250438,-1113.57,0.00016712,2]
[335205773,1723978250460,-530.35646287,0.00016712,2]
[335205774,1723978250476,-500.0,0.00016712,2]
[335205775,1723978250497,-500.0,0.00016712,2]
[335205776,1723978250518,-500.0,0.00016712,2]
[335205777,1723978250535,-500.0,0.00016712,2]
[335205778,1723978250555,-934.37,0.00016712,2]
[335205779,1723978250578,-524.65,0.00016712,2]
[335205780,1723978250598,-500.0,0.00016712,2]
[335205781,1723978250617,-500.0,0.00016712,2]
[335205782,1723978250637,-700.31,0.00016712,2]
[335205783,1723978250650,-500.0,0.00016712,2]
[335205784,1723978250667,-500.0,0.00016712,2]
[335205785,1723978250683,-500.0,0.00016712,2]
[335205786,1723978250699,-798.05,0.00016712,2]
[335205787,1723978250715,-500.0,0.00016712,2]
[335205788,1723978250729,-500.0,0.00016712,2]
[335205789,1723978250744,-348.75863628,0.00016712,2]
[335205790,1723978250758,-500.0,0.00016712,2]
[335205791,1723978250774,-500.0,0.00016712,2]
[335205792,1723978250789,-500.0,0.00016712,2]
[335205793,1723978250806,-559.48,0.00016712,2]
[335205794,1723978250830,-500.0,0.00016712,2]
[335205795,1723978250847,-500.0,0.00016712,2]
[335205796,1723978250861,-500.0,0.00016712,2]
[335205797,1723978250875,-500.0,0.00016712,2]
[335205798,1723978250891,-500.0,0.00016712,2]
[335205799,1723978250905,-500.0,0.00016712,2]
[335205800,1723978250921,-1000.0,0.00016712,2]
[335205801,1723978250936,-500.0,0.00016712,2]
[335205802,1723978250951,-500.0,0.00016712,2]
[335205803,1723978250964,-500.0,0.00016712,2]
[335205804,1723978250983,-500.0,0.00016712,2]
[335205805,1723978250999,-500.0,0.00016712,2]
[335205806,1723978251013,-500.0,0.00016712,2]
[335205807,1723978251028,-500.0,0.00016712,2]
[335205808,1723978251042,-536.03048308,0.00016712,2]
[335205809,1723978251055,-500.0,0.00016712,2]
[335205810,1723978251077,-215.53294663,0.00016712,2]
[335205811,1723978251091,-500.0,0.00016712,2]
[335205812,1723978251104,-500.0,0.00016712,2]
[335205813,1723978251117,-500.0,0.00016712,2]
[335205814,1723978251130,-819.13,0.00016712,2]
[335205815,1723978251145,-640.2,0.00016712,2]
[335205816,1723978251159,-167.27726661,0.00016712,2]
[335205817,1723978251173,-500.0,0.00016712,2]
[335205818,1723978251186,-309.0108856,0.00016712,2]
[335205819,1723978251200,-500.0,0.00016712,2]
[335205820,1723978251214,-514.58,0.00016712,2]
[335205821,1723978251226,-500.0,0.00016712,2]
[335205822,1723978251236,-500.0,0.00016712,2]
[335205823,1723978251245,-500.0,0.00016712,2]
[335205824,1723978251255,-503.26337526,0.00016712,2]
[335205825,1723978251264,-500.0,0.00016712,2]
[335205826,1723978251274,-718.29,0.00016712,2]
[335205827,1723978251283,-500.0,0.00016712,2]
[335205828,1723978251293,-500.0,0.00016712,2]
[335205829,1723978251303,-506.83744732,0.00016712,2]
[335205830,1723978251312,-500.0,0.00016712,2]
[335205831,1723978251327,-535.57,0.00016712,2]
[335205832,1723978251337,-526.31895576,0.00016712,2]
[335205833,1723978251346,-500.0,0.00016712,2]
[335205834,1723978251355,-500.0,0.00016712,2]
[335205835,1723978251365,-500.0,0.00016712,2]
[335205836,1723978251375,-500.0,0.00016712,2]
[335205837,1723978251587,-516.18,0.00016712,2]
[335205838,1723978251603,-150.0,0.00016712,2]
[335205839,1723978251613,-500.0,0.00016712,2]
[335205840,1723978251622,-500.0,0.00016712,2]
[335205841,1723978251631,-500.0,0.00016712,2]
[335205842,1723978251642,-509.52675706,0.00016712,2]
[335205843,1723978251652,-500.0,0.00016712,2]
[335205844,1723978251662,-500.0,0.00016712,2]
[335205845,1723978251671,-500.0,0.00016712,2]
[335205846,1723978251680,-500.0,0.00016712,2]
[335205847,1723978251690,-500.0,0.00016712,2]
[335205848,1723978251700,-665.79,0.00016712,2]
[335205849,1723978251709,-500.0,0.00016712,2]
[335205850,1723978251718,-500.0,0.00016712,2]
[335205851,1723978251727,-500.0,0.00016712,2]
[335205852,1723978251737,-500.0,0.00016712,2]
[335205853,1723978251746,-500.0,0.00016712,2]
[335205854,1723978251756,-469.50897845,0.00016712,2]
[335205855,1723978251765,-500.0,0.00016712,2]
[335205856,1723978251774,-500.0,0.00016712,2]
[335205857,1723978251784,-500.0,0.00016712,2]
[335205858,1723978251798,-500.0,0.00016712,2]
[335205859,1723978251807,-500.0,0.00016712,2]
[335205860,1723978251823,-500.0,0.00016712,2]
[335205861,1723978251833,-500.0,0.00016712,2]
[335205862,1723978251842,-729.61,0.00016712,2]
[335205863,1723978251851,-500.0,0.00016712,2]
[335205864,1723978251860,-500.0,0.00016712,2]
[335205865,1723978251871,-500.0,0.00016712,2]
[335205866,1723978251880,-500.0,0.00016712,2]
[335205867,1723978251889,-500.0,0.00016712,2]
[335205868,1723978251899,-2005.0,0.00016712,10]
[335205869,1723978251907,-500.0,0.00016712,2]
[335205870,1723978251917,-500.0,0.00016712,2]
[335205871,1723978251927,-500.0,0.00016712,2]
[335205872,1723978251936,-500.0,0.00016712,2]
[335205873,1723978251945,-1161.88,0.00016712,2]
[335205874,1723978251954,-500.0,0.00016712,2]
[335205875,1723978251964,-756.2,0.00016712,2]
[335205876,1723978251973,-638.91,0.00016712,2]
[335205877,1723978251982,-200.0,0.00016712,2]
[335205878,1723978251992,-500.0,0.00016712,2]
[335205879,1723978252002,-500.0,0.00016712,2]
[335205880,1723978252012,-500.0,0.00016712,2]
[335205881,1723978252021,-1355.38,0.00016712,2]
[335205882,1723978252031,-1357.84,0.00016712,2]
[335205883,1723978252040,-500.0,0.00016712,2]
[335205884,1723978252049,-1193.77,0.00016712,2]
[335205885,1723978252059,-500.0,0.00016712,2]
[335205886,1723978252069,-500.0,0.00016712,2]
[335205887,1723978252079,-500.0,0.00016712,2]
[335205888,1723978252088,-500.0,0.00016712,2]
[335205889,1723978252097,-500.0,0.00016712,2]
[335205890,1723978252106,-500.0,0.00016712,2]
[335205891,1723978252115,-500.0,0.00016712,2]
[335205892,1723978252124,-507.97641047,0.00016712,2]
[335205893,1723978252134,-500.0,0.00016712,2]
[335205894,1723978252143,-500.0,0.00016712,2]
[335205895,1723978252153,-500.0,0.00016712,2]
[335205896,1723978252162,-500.0,0.00016712,2]
[335205897,1723978252172,-500.0,0.00016712,2]
[335205898,1723978252183,-500.0,0.00016712,2]
[335205899,1723978252193,-500.0,0.00016712,2]
[335205900,1723978252203,-500.0,0.00016712,2]
[335205901,1723978252213,-1133.98,0.00016712,2]
[335205902,1723978252225,-936.29,0.00016712,2]
[335205903,1723978252235,-500.0,0.00016712,2]
[335205904,1723978252246,-500.0,0.00016712,2]
[335205905,1723978252258,-388.24660019,0.00016712,2]
[335205906,1723978252282,-500.0,0.00016712,2]
[335205907,1723978252294,-1319.09,0.00016712,2]
[335205908,1723978252306,-500.0,0.00016712,2]
[335205909,1723978252319,-461.50916637,0.00016712,2]
[335205910,1723978252329,-748.11,0.00016712,2]
[335205911,1723978252340,-500.0,0.00016712,2]
[335205912,1723978252350,-494.2044068,0.00016712,2]
[335205913,1723978252361,-500.0,0.00016712,2]
[335205914,1723978252371,-500.0,0.00016712,2]
[335205915,1723978252381,-642.67,0.00016712,2]
[335205916,1723978252391,-527.58428608,0.00016712,2]
[335205917,1723978252402,-500.0,0.00016712,2]
[335205918,1723978252411,-1176.95,0.00016712,2]
[335205919,1723978252421,-500.0,0.00016712,2]
[335205920,1723978252431,-500.0,0.00016712,2]
[335205921,1723978252441,-500.0,0.00016712,2]
[335205922,1723978252451,-534.25,0.00016712,2]
[335205923,1723978252460,-500.0,0.00016712,2]
[335205924,1723978252470,-500.0,0.00016712,2]
[335205925,1723978252480,-500.0,0.00016712,2]
[335205926,1723978252490,-500.0,0.00016712,2]
[335205927,1723978252500,-500.0,0.00016712,2]
[335205928,1723978252509,-500.0,0.00016712,2]
[335205929,1723978252519,-500.0,0.00016712,2]
[335205930,1723978252528,-500.0,0.00016712,2]
[335205931,1723978252538,-1253.21,0.00016712,2]
[335205932,1723978252548,-711.27,0.00016712,2]
[335205933,1723978252558,-500.0,0.00016712,2]
[335205934,1723978252568,-500.0,0.00016712,2]
[335205935,1723978252577,-616.2,0.00016712,2]
[335205936,1723978252587,-626.45,0.00016712,2]
[335205937,1723978252597,-500.0,0.00016712,2]
[335205938,1723978252607,-500.0,0.00016712,2]
[335205939,1723978252616,-582.66,0.00016712,2]
[335205940,1723978252626,-500.0,0.00016712,2]
[335205941,1723978252635,-502.26264093,0.00016712,2]
[335205942,1723978252645,-500.0,0.00016712,2]
[335205943,1723978252655,-3211.23,0.00016712,2]
[335205944,1723978252665,-500.0,0.00016712,2]
[335205945,1723978252674,-1782.31,0.00016712,2]
[335205946,1723978252684,-151.0,0.00016712,2]
[335205947,1723978252694,-612.68,0.00016712,2]
[335205948,1723978252704,-500.0,0.00016712,2]
[335205949,1723978252714,-1330.07,0.00016712,2]
[335205950,1723978252723,-541.78,0.00016712,2]
[335205951,1723978252733,-517.7936347,0.00016712,2]
[335205952,1723978252743,-543.53104022,0.00016712,2]
[335205953,1723978252753,-151.0,0.00016712,2]
[335205954,1723978252762,-500.0,0.00016712,2]
[335205955,1723978252772,-500.0,0.00016712,2]
[335205956,1723978252782,-500.0,0.00016712,2]
[335205957,1723978252794,-500.0,0.00016712,2]
[335205958,1723978252805,-861.07,0.00016712,2]
[335205959,1723978252814,-500.0,0.00016712,2]
[335205960,1723978252825,-657.9,0.00016712,2]
[335205961,1723978252835,-500.0,0.00016712,2]
[335205962,1723978252846,-643.82,0.00016712,2]
[335205963,1723978252855,-504.56767197,0.00016712,2]
[335205964,1723978252865,-500.0,0.00016712,2]
[335205965,1723978252875,-611.64,0.00016712,2]
[335205966,1723978252885,-500.0,0.00016712,2]
[335205967,1723978252895,-6977.86,0.00016712,2]
[335205968,1723978252905,-500.0,0.00016712,2]
[335205969,1723978252914,-500.0,0.00016712,2]
[335205970,1723978252924,-931.16,0.00016712,2]
[335205971,1723978252933,-500.0,0.00016712,2]
[335205972,1723978252943,-502.95311286,0.00016712,2]
[335205973,1723978252952,-2007.9,0.00016712,2]
[335205974,1723978252962,-515.55398603,0.00016712,2]
[335205975,1723978252971,-1023.26,0.00016712,2]
[335205976,1723978252981,-500.0,0.00016712,2]
[335205977,1723978252991,-522.86101654,0.00016712,2]
[335205978,1723978253000,-500.0,0.00016712,2]
[335205979,1723978253009,-500.0,0.00016712,2]
[335205980,1723978253019,-777.99,0.00016712,2]
[335205981,1723978253028,-500.0,0.00016712,2]
[335205982,1723978253038,-931.18,0.00016712,2]
[335205983,1723978253048,-500.0,0.00016712,2]
[335205984,1723978253057,-578.45394227,0.00016712,2]
[335205985,1723978253067,-500.0,0.00016712,2]
[335205986,1723978253076,-500.0,0.00016712,2]
[335205987,1723978253086,-500.0,0.00016712,2]
[335205988,1723978253095,-287.4643648,0.00016712,2]
[335205989,1723978253105,-1081.56,0.00016712,2]
[335205990,1723978253115,-500.0,0.00016712,2]
[335205991,1723978253124,-2055.66,0.00016712,2]
[335205992,1723978253133,-500.0,0.00016712,2]
[335205993,1723978253143,-516.68,0.00016712,2]
[335205994,1723978253153,-500.0,0.00016712,2]
[335205995,1723978253162,-1185.13,0.00016712,2]
[335205996,1723978253172,-697.34,0.00016712,2]
[335205997,1723978253181,-500.0,0.00016712,2]
[335205998,1723978253191,-500.0,0.00016712,2]
[335205999,1723978253201,-500.0,0.00016712,2]
[335206000,1723978253212,-500.0,0.00016712,2]
[335206001,1723978253221,-500.0,0.00016712,2]
[335206002,1723978253231,-1015.84,0.00016712,2]
[335206003,1723978253240,-891.51,0.00016712,2]
[335206004,1723978253250,-500.0,0.00016712,2]
[335206005,1723978253260,-848.05,0.00016712,2]
[335206006,1723978253269,-304.73344824,0.00016712,2]
[335206007,1723978253279,-709.79,0.00016712,2]
[335206008,1723978253289,-511.45949116,0.00016712,2]
[335206009,1723978253298,-500.0,0.00016712,2]
[335206010,1723978253308,-957.04,0.00016712,2]
[335206011,1723978253319,-500.0,0.00016712,2]
[335206012,1723978253328,-500.0,0.00016712,2]
[335206013,1723978253338,-684.6,0.00016712,2]
[335206014,1723978253347,-729.94,0.00016712,2]
[335206015,1723978253357,-677.81,0.00016712,2]
[335206016,1723978253367,-780.04,0.00016712,2]
[335206017,1723978253376,-500.0,0.00016712,2]
[335206018,1723978253385,-500.0,0.00016712,2]
[335206019,1723978253395,-500.0,0.00016712,2]
[335206020,1723978253406,-783.85,0.00016712,2]
[335206021,1723978253417,-500.0,0.00016712,2]
[335206022,1723978253427,-929.77,0.00016712,2]
[335206023,1723978253437,-731.73,0.00016712,2]
[335206024,1723978253447,-500.0,0.00016712,2]
[335206025,1723978253457,-984.19,0.00016712,2]
[335206026,1723978253466,-500.0,0.00016712,2]
[335206027,1723978253476,-513.22647486,0.00016712,2]
[335206028,1723978253486,-758.37,0.00016712,2]
[335206029,1723978253495,-215.265554,0.00016712,2]
[335206030,1723978253505,-215.265554,0.00016712,2]
[335206031,1723978253515,-918.67,0.00016712,2]
[335206032,1723978253525,-500.0,0.00016712,2]
[335206033,1723978253534,-500.0,0.00016712,2]
[335206034,1723978253545,-482.46625134,0.00016712,2]
[335206035,1723978253555,-500.0,0.00016712,2]
[335206036,1723978253565,-215.265554,0.00016712,2]
[335206037,1723978253576,-215.265554,0.00016712,2]
[335206038,1723978253585,-500.0,0.00016712,2]
[335206039,1723978253595,-1070.69,0.00016712,2]
[335206040,1723978253604,-2012.69,0.00016712,2]
[335206041,1723978253614,-506.13,0.00016712,2]
[335206042,1723978253624,-500.0,0.00016712,2]
[335206043,1723978253634,-500.0,0.00016712,2]
[335206044,1723978253644,-865.11,0.00016712,2]
[335206045,1723978253653,-500.0,0.00016712,2]
[335206046,1723978253663,-814.32,0.00016712,2]
[335206047,1723978253672,-500.0,0.00016712,2]
[335206048,1723978253682,-495.78922425,0.00016712,2]
[335206049,1723978253692,-759.69,0.00016712,2]
[335206050,1723978253702,-500.0,0.00016712,2]
[335206051,1723978253712,-855.8,0.00016712,2]
[335206052,1723978253721,-500.0,0.00016712,2]
[335206053,1723978253731,-500.0,0.00016712,2]
[335206054,1723978253740,-500.0,0.00016712,2]
[335206055,1723978253749,-500.0,0.00016712,2]
[335206056,1723978253759,-500.0,0.00016712,2]
[335206057,1723978253768,-500.0,0.00016712,2]
[335206058,1723978253778,-500.0,0.00016712,2]
[335206059,1723978253788,-542.23948546,0.00016712,2]
[335206060,1723978253798,-500.0,0.00016712,2]
[335206061,1723978253813,-716.73,0.00016712,2]
[335206062,1723978253825,-500.0,0.00016712,2]
[335206063,1723978253839,-500.0,0.00016712,2]
[335206064,1723978253849,-1245.16,0.00016712,2]
[335206065,1723978253861,-509.52708018,0.00016712,2]
[335206066,1723978253871,-577.4,0.00016712,2]
[335206067,1723978253884,-695.79,0.00016712,2]
[335206068,1723978253895,-500.0,0.00016712,2]
[335206069,1723978253906,-477.77410613,0.00016841,2]
[335206070,1723978253917,-304.5556459,0.00016849,2]
[335206071,1723978253928,-153.0,0.00016849,2]
[335206072,1723978253939,-153.0,0.00016849,2]
[335206073,1723978253951,-500.0,0.00016865,2]
[335206074,1723978253961,-470.42074438,0.00016865,2]
[335206075,1723978253971,-151.0,0.00016886,2]
[335206076,1723978253981,-151.0,0.00016886,2]
[335206077,1723978253991,-40000.0,0.00016886,2]
[335206078,1723978254001,-200.0,0.00016973,2]
[335206079,1723978254011,-200.0,0.00016973,2]
[335206080,1723978254020,-200.25408142,0.00016973,2]
[335206081,1723978254029,-200.0,0.00016973,2]
[335206082,1723978254039,-200.0,0.00016973,2]
[335206083,1723978254049,-500.0,0.00016986,2]
[335206084,1723978254058,-591.27,0.00016986,2]
[335206085,1723978254068,-500.0,0.00016986,2]
[335206086,1723978254078,-500.0,0.00016986,2]
[335206087,1723978254087,-500.0,0.00016986,2]
[335206088,1723978254097,-571.35,0.00016986,2]
[335206089,1723978254106,-502.76378911,0.00016986,2]
[335206090,1723978254116,-500.0,0.00016986,2]
[335206091,1723978254125,-500.0,0.00016986,2]
[335206092,1723978254134,-500.0,0.00016986,2]
[335206093,1723978254143,-518.94139326,0.00016986,2]
[335206094,1723978254153,-500.0,0.00016986,2]
[335206095,1723978254162,-500.0,0.00016986,2]
[335206096,1723978254172,-500.0,0.00016986,2]
[335206097,1723978254181,-500.0,0.00016986,2]
[335206098,1723978254192,-547.52,0.00016986,2]
[335206099,1723978254202,-500.0,0.00016986,2]
[335206100,1723978254211,-500.0,0.00016986,2]
[335206101,1723978254223,-500.0,0.00016986,2]
[335206102,1723978254234,-505.89984748,0.00016986,2]
[335206103,1723978254246,-500.0,0.00016986,2]
[335206104,1723978254256,-500.0,0.00016986,2]
[335206105,1723978254265,-511.27237691,0.00016986,2]
[335206106,1723978254275,-500.0,0.00016986,2]
[335206107,1723978254284,-500.0,0.00016986,2]
[335206108,1723978254294,-506.50095845,0.00016986,2]
[335206109,1723978254303,-500.0,0.00016986,2]
[335206110,1723978254313,-502.55370451,0.00016986,2]
[335206111,1723978254326,-500.0,0.00016986,2]
[335206112,1723978254335,-500.0,0.00016986,2]
[335206113,1723978254344,-500.0,0.00016986,2]
[335206114,1723978254354,-500.0,0.00016986,2]
[335206115,1723978254363,-372.84039131,0.00016986,2]
[335206116,1723978254373,-634.2,0.00016986,2]
[335206117,1723978254382,-500.0,0.00016986,2]
[335206118,1723978254392,-500.0,0.00016986,2]
[335206119,1723978254402,-500.0,0.00016986,2]
[335206120,1723978254411,-500.0,0.00016986,2]
[335206121,1723978254420,-500.0,0.00016986,2]
[335206122,1723978254429,-500.0,0.00016986,2]
[335206123,1723978254440,-500.0,0.00016986,2]
[335206124,1723978254449,-500.0,0.00016986,2]
[335206125,1723978254458,-500.0,0.00016986,2]
[335206126,1723978254468,-500.0,0.00016986,2]
[335206127,1723978254477,-500.0,0.00016986,2]
[335206128,1723978254487,-512.98364531,0.00016986,2]
[335206129,1723978254497,-500.0,0.00016986,2]
[335206130,1723978254506,-500.0,0.00016986,2]
[335206131,1723978254515,-500.0,0.00016986,2]
[335206132,1723978254526,-642.43,0.00016986,2]
[335206133,1723978254535,-500.0,0.00016986,2]
[335206134,1723978254545,-500.0,0.00016986,2]
[335206135,1723978254554,-500.0,0.00016986,2]
[335206136,1723978254706,-500.0,0.00016986,2]
[335206137,1723978254716,-888.39,0.00016986,2]
[335206138,1723978254726,-500.0,0.00016986,2]
[335206139,1723978254736,-500.0,0.00016986,2]
[335206140,1723978254746,-500.0,0.00016986,2]
[335206141,1723978254755,-500.0,0.00016986,2]
[335206142,1723978254764,-500.0,0.00016986,2]
[335206143,1723978254774,-500.0,0.00016986,2]
[335206144,1723978254783,-642.95,0.00016986,2]
[335206145,1723978254793,-500.0,0.00016986,2]
[335206146,1723978254803,-999.84,0.00016986,2]
[335206147,1723978254814,-500.0,0.00016986,2]
[335206148,1723978254828,-500.0,0.00016986,2]
[335206149,1723978254838,-711.27,0.00016986,2]
[335206150,1723978254848,-500.0,0.00016986,2]
[335206151,1723978254858,-500.0,0.00016986,2]
[335206152,1723978254867,-500.0,0.00016986,2]
[335206153,1723978254877,-500.0,0.00016986,2]
[335206154,1723978254888,-500.0,0.00016986,2]
[335206155,1723978254897,-500.0,0.00016986,2]
[335206156,1723978254907,-505.24686272,0.00016986,2]